[Event "Titled Tuesday Blitz June 13 Late 2023"]
[White "Elsa167"]
[Black "WindWhistler11"]
[WhiteElo "2883"]
[BlackElo "2581"]
[Result "1-0"]
[Round "2"]
[TimeControl "180+2"]
[Date "2023.06.13"]
[WhiteClock "0:00:25"]
[BlackClock "0:00:00"]
[Board "34"]

1. d4 {[%clk 0:03:00]}  Nf6 {[%clk 0:02:59]} 2. c4 {[%clk 0:03:01]}  e6 {[%clk 0:02:59]} 3. Nf3 {[%clk 0:03:00]}  c5 {[%clk 0:03:00]} 4. d5 {[%clk 0:03:01]}  exd5 {[%clk 0:03:00]} 5. cxd5 {[%clk 0:03:02]}  Bd6 {[%clk 0:03:01]} 6. g3 {[%clk 0:02:59]}  O-O {[%clk 0:03:01]} 7. Bg2 {[%clk 0:03:00]}  Re8 {[%clk 0:03:02]} 8. O-O {[%clk 0:03:00]}  Bf8 {[%clk 0:03:02]} 9. b3 {[%clk 0:02:58]}  d6 {[%clk 0:02:56]} 10. Bb2 {[%clk 0:02:58]}  b6 {[%clk 0:02:54]} 11. Nfd2 {[%clk 0:02:54]}  Ba6 {[%clk 0:02:52]} 12. Re1 {[%clk 0:02:54]}  Nbd7 {[%clk 0:02:37]} 13. Nc3 {[%clk 0:02:52]}  g6 {[%clk 0:02:33]} 14. a4 {[%clk 0:02:50]}  Bg7 {[%clk 0:02:28]} 15. Nb5 {[%clk 0:02:48]}  Ne5 {[%clk 0:02:15]} 16. h3 {[%clk 0:02:37]}  Bxb5 {[%clk 0:02:12]} 17. axb5 {[%clk 0:02:37]}  g5 {[%clk 0:01:56]} 18. Nc4 {[%clk 0:02:13]}  Ng6 {[%clk 0:01:42]} 19. Qd3 {[%clk 0:01:55]}  Qd7 {[%clk 0:01:30]} 20. Ne3 {[%clk 0:01:55]}  Ne5 {[%clk 0:01:24]} 21. Qf5 {[%clk 0:01:54]}  Qxb5 {[%clk 0:01:17]} 22. Qxg5 {[%clk 0:01:54]}  h6 {[%clk 0:01:12]} 23. Qh4 {[%clk 0:01:51]}  Qxb3 {[%clk 0:00:59]} 24. Reb1 {[%clk 0:01:28]}  Ng6 {[%clk 0:00:47]} 25. Qa4 {[%clk 0:01:28]}  Rxe3 {[%clk 0:00:41]} 26. fxe3 {[%clk 0:01:13]}  Qxe3+ {[%clk 0:00:42]} 27. Kh2 {[%clk 0:01:14]}  Nh5 {[%clk 0:00:36]} 28. Ra3 {[%clk 0:01:14]}  Qxe2 {[%clk 0:00:28]} 29. Bxg7 {[%clk 0:01:12]}  Kxg7 {[%clk 0:00:25]} 30. Rf1 {[%clk 0:01:05]}  b5 {[%clk 0:00:17]} 31. Qa6 {[%clk 0:00:47]}  Re8 {[%clk 0:00:04]} 32. Qxd6 {[%clk 0:00:38]}  Re5 {[%clk 0:00:03]} 33. Rxa7 {[%clk 0:00:32]}  Re7 {[%clk 0:00:00]} 34. Rxe7 {[%clk 0:00:25]} 1-0


[Site "https://www.chess.com"]

[Event "Titled Tuesday Blitz June 13 Late 2023"]
[White "Omranalhosani21"]
[Black "Holt, Conrad"]
[BlackFideId "2034387"]
[WhiteElo "2577"]
[BlackElo "2592"]
[Result "0-1"]
[Round "2"]
[TimeControl "180+2"]
[Date "2023.06.13"]
[WhiteClock "0:00:00"]
[BlackClock "0:00:08"]
[Board "37"]

1. Nf3 {[%clk 0:02:59]}  d5 {[%clk 0:02:59]} 2. d3 {[%clk 0:02:59]}  Nf6 {[%clk 0:02:51]} 3. g3 {[%clk 0:02:54]}  c5 {[%clk 0:02:49]} 4. Bg2 {[%clk 0:02:53]}  Nc6 {[%clk 0:02:50]} 5. O-O {[%clk 0:02:53]}  e5 {[%clk 0:02:44]} 6. e4 {[%clk 0:02:53]}  d4 {[%clk 0:02:38]} 7. a4 {[%clk 0:02:51]}  Be7 {[%clk 0:02:36]} 8. Na3 {[%clk 0:02:50]}  Be6 {[%clk 0:02:33]} 9. Ng5 {[%clk 0:02:49]}  Bg4 {[%clk 0:02:32]} 10. f3 {[%clk 0:02:49]}  Bd7 {[%clk 0:02:31]} 11. h4 {[%clk 0:02:44]}  h6 {[%clk 0:02:16]} 12. Nh3 {[%clk 0:02:43]}  Nh5 {[%clk 0:02:15]} 13. Kh2 {[%clk 0:02:35]}  g5 {[%clk 0:02:15]} 14. g4 {[%clk 0:02:36]}  Nf4 {[%clk 0:02:10]} 15. Nxf4 {[%clk 0:02:35]}  exf4 {[%clk 0:01:58]} 16. h5 {[%clk 0:02:34]}  Qc7 {[%clk 0:01:53]} 17. Nc4 {[%clk 0:02:32]}  b6 {[%clk 0:01:48]} 18. Bd2 {[%clk 0:02:24]}  Bf6 {[%clk 0:01:34]} 19. Qb1 {[%clk 0:02:13]}  Be6 {[%clk 0:01:30]} 20. b3 {[%clk 0:02:02]}  O-O {[%clk 0:01:28]} 21. Rc1 {[%clk 0:01:39]}  Ne5 {[%clk 0:01:19]} 22. Nxe5 {[%clk 0:01:37]}  Bxe5 {[%clk 0:01:18]} 23. Kh1 {[%clk 0:01:23]}  Qd7 {[%clk 0:01:11]} 24. Bh3 {[%clk 0:01:22]}  a6 {[%clk 0:01:08]} 25. a5 {[%clk 0:01:20]}  b5 {[%clk 0:01:07]} 26. Qb2 {[%clk 0:01:04]}  Rac8 {[%clk 0:00:44]} 27. Rab1 {[%clk 0:00:55]}  Rfd8 {[%clk 0:00:42]} 28. Be1 {[%clk 0:00:52]}  Bg7 {[%clk 0:00:40]} 29. Qa3 {[%clk 0:00:43]}  c4 {[%clk 0:00:38]} 30. bxc4 {[%clk 0:00:43]}  bxc4 {[%clk 0:00:39]} 31. Rb6 {[%clk 0:00:41]}  Rc6 {[%clk 0:00:25]} 32. Rcb1 {[%clk 0:00:39]}  Rdc8 {[%clk 0:00:23]} 33. Rb7 {[%clk 0:00:36]}  Qd8 {[%clk 0:00:21]} 34. R1b6 {[%clk 0:00:31]}  cxd3 {[%clk 0:00:18]} 35. Rxc6 {[%clk 0:00:31]}  Rxc6 {[%clk 0:00:17]} 36. cxd3 {[%clk 0:00:30]}  Bf8 {[%clk 0:00:15]} 37. Qb2 {[%clk 0:00:22]}  Rc8 {[%clk 0:00:13]} 38. Bf2 {[%clk 0:00:21]}  Bg7 {[%clk 0:00:13]} 39. Rb6 {[%clk 0:00:17]}  Ra8 {[%clk 0:00:13]} 40. Kg2 {[%clk 0:00:15]}  Qd7 {[%clk 0:00:13]} 41. Rb4 {[%clk 0:00:15]}  Rd8 {[%clk 0:00:13]} 42. Rb6 {[%clk 0:00:15]}  Ra8 {[%clk 0:00:13]} 43. Rb4 {[%clk 0:00:15]}  Rd8 {[%clk 0:00:13]} 44. Rb6 {[%clk 0:00:16]}  Qa7 {[%clk 0:00:14]} 45. Rb7 {[%clk 0:00:14]}  Qc5 {[%clk 0:00:14]} 46. Qb6 {[%clk 0:00:13]}  Rc8 {[%clk 0:00:12]} 47. Rb8 {[%clk 0:00:10]}  Kh7 {[%clk 0:00:11]} 48. Rxc8 {[%clk 0:00:10]}  Qxc8 {[%clk 0:00:12]} 49. Bxd4 {[%clk 0:00:08]}  Qc2+ {[%clk 0:00:12]} 50. Bf2 {[%clk 0:00:08]}  Qxd3 {[%clk 0:00:13]} 51. Qc5 {[%clk 0:00:06]}  Bc4 {[%clk 0:00:13]} 52. Kh2 {[%clk 0:00:05]}  Bc3 {[%clk 0:00:11]} 53. Bg2 {[%clk 0:00:05]}  Kg7 {[%clk 0:00:11]} 54. Qc7 {[%clk 0:00:03]}  Be6 {[%clk 0:00:11]} 55. Qc5 {[%clk 0:00:03]}  Qd2 {[%clk 0:00:12]} 56. Qc7 {[%clk 0:00:02]}  Bxa5 {[%clk 0:00:12]} 57. Qc6 {[%clk 0:00:02]}  Bc3 {[%clk 0:00:12]} 58. Bg1 {[%clk 0:00:01]}  a5 {[%clk 0:00:12]} 59. Qa6 {[%clk 0:00:02]}  Bb4 {[%clk 0:00:10]} 60. Qb5 {[%clk 0:00:02]}  Bc3 {[%clk 0:00:11]} 61. Qc5 {[%clk 0:00:02]}  Qb2 {[%clk 0:00:11]} 62. Qc6 {[%clk 0:00:02]}  Qb4 {[%clk 0:00:10]} 63. Qc7 {[%clk 0:00:01]}  a4 {[%clk 0:00:10]} 64. Bc5 {[%clk 0:00:02]}  Qb1 {[%clk 0:00:08]} 65. Qe7 {[%clk 0:00:03]}  Qg1+ {[%clk 0:00:07]} 66. Kh3 {[%clk 0:00:03]}  Qa1 {[%clk 0:00:08]} 67. Qf8+ {[%clk 0:00:03]}  Kh7 {[%clk 0:00:08]} 68. e5 {[%clk 0:00:02]}  Bxe5 {[%clk 0:00:09]} 69. Qe7 {[%clk 0:00:02]}  Bf6 {[%clk 0:00:08]} 70. Qd6 {[%clk 0:00:02]}  Qc3 {[%clk 0:00:08]} 71. Bf1 {[%clk 0:00:02]}  Kg7 {[%clk 0:00:08]} 72. Bd3 {[%clk 0:00:02]}  Be7 {[%clk 0:00:06]} 73. Qxe7 {[%clk 0:00:02]}  Qxd3 {[%clk 0:00:06]} 74. Qf8+ {[%clk 0:00:02]}  Kf6 {[%clk 0:00:05]} 75. Qxh6+ {[%clk 0:00:02]}  Ke5 {[%clk 0:00:06]} 76. Qxg5+ {[%clk 0:00:02]}  f5 {[%clk 0:00:05]} 77. Qg7+ {[%clk 0:00:03]}  Kd5 {[%clk 0:00:06]} 78. Qd4+ {[%clk 0:00:01]}  Qxd4 {[%clk 0:00:06]} 79. Bxd4 {[%clk 0:00:02]}  fxg4+ {[%clk 0:00:06]} 80. fxg4 {[%clk 0:00:02]}  Kxd4 {[%clk 0:00:07]} 81. h6 {[%clk 0:00:03]}  Bg8 {[%clk 0:00:07]} 82. g5 {[%clk 0:00:03]}  Bh7 {[%clk 0:00:08]} 83. Kg4 {[%clk 0:00:02]}  Bg6 {[%clk 0:00:08]} 84. Kxf4 {[%clk 0:00:00]}  a3 {[%clk 0:00:08]} 0-1


[Site "https://www.chess.com"]

[Event "Titled Tuesday Blitz June 13 Late 2023"]
[White "Dardha, Daniel"]
[Black "Mortazavi, Ali"]
[WhiteFideId "240990"]
[BlackFideId "401323"]
[WhiteElo "2572"]
[BlackElo "2339"]
[Result "1-0"]
[Round "2"]
[TimeControl "180+2"]
[Date "2023.06.13"]
[WhiteClock "0:00:07"]
[BlackClock "0:00:08"]
[Board "38"]

1. Nf3 {[%clk 0:03:00]}  Nf6 {[%clk 0:02:59]} 2. c4 {[%clk 0:03:00]}  g6 {[%clk 0:03:00]} 3. g3 {[%clk 0:02:58]}  Bg7 {[%clk 0:03:01]} 4. Bg2 {[%clk 0:02:57]}  O-O {[%clk 0:03:02]} 5. b3 {[%clk 0:02:57]}  d6 {[%clk 0:03:03]} 6. d4 {[%clk 0:02:56]}  a5 {[%clk 0:02:57]} 7. Nc3 {[%clk 0:02:55]}  Nbd7 {[%clk 0:02:51]} 8. O-O {[%clk 0:02:54]}  e5 {[%clk 0:02:51]} 9. e3 {[%clk 0:02:54]}  Re8 {[%clk 0:02:50]} 10. Bb2 {[%clk 0:02:52]}  exd4 {[%clk 0:02:44]} 11. Nxd4 {[%clk 0:02:53]}  Nc5 {[%clk 0:02:44]} 12. a3 {[%clk 0:02:48]}  h5 {[%clk 0:02:30]} 13. b4 {[%clk 0:02:46]}  axb4 {[%clk 0:02:27]} 14. axb4 {[%clk 0:02:47]}  Rxa1 {[%clk 0:02:28]} 15. Bxa1 {[%clk 0:02:46]}  Nce4 {[%clk 0:02:25]} 16. Nxe4 {[%clk 0:02:46]}  Nxe4 {[%clk 0:02:26]} 17. Nb3 {[%clk 0:02:24]}  Bxa1 {[%clk 0:02:13]} 18. Qxa1 {[%clk 0:02:25]}  Qe7 {[%clk 0:01:46]} 19. Re1 {[%clk 0:02:14]}  h4 {[%clk 0:01:46]} 20. Qd4 {[%clk 0:02:10]}  h3 {[%clk 0:01:43]} 21. Bh1 {[%clk 0:02:03]}  c5 {[%clk 0:01:18]} 22. bxc5 {[%clk 0:01:55]}  dxc5 {[%clk 0:01:19]} 23. Qb2 {[%clk 0:01:54]}  Ng5 {[%clk 0:01:13]} 24. Nd2 {[%clk 0:01:47]}  Rd8 {[%clk 0:01:05]} 25. f4 {[%clk 0:01:47]}  Nh7 {[%clk 0:00:53]} 26. Nf3 {[%clk 0:01:40]}  Nf6 {[%clk 0:00:52]} 27. Ne5 {[%clk 0:01:40]}  Ng4 {[%clk 0:00:45]} 28. Nxg4 {[%clk 0:01:01]}  Bxg4 {[%clk 0:00:45]} 29. Qxb7 {[%clk 0:01:01]}  Qxb7 {[%clk 0:00:45]} 30. Bxb7 {[%clk 0:01:01]}  Rd2 {[%clk 0:00:46]} 31. Bd5 {[%clk 0:01:01]}  Kg7 {[%clk 0:00:46]} 32. e4 {[%clk 0:01:01]}  Rg2+ {[%clk 0:00:42]} 33. Kf1 {[%clk 0:00:29]}  Rxh2 {[%clk 0:00:23]} 34. e5 {[%clk 0:00:29]}  Rc2 {[%clk 0:00:21]} 35. Kg1 {[%clk 0:00:30]}  Rc3 {[%clk 0:00:13]} 36. Kh2 {[%clk 0:00:29]}  Rc2+ {[%clk 0:00:13]} 37. Kg1 {[%clk 0:00:29]}  Rc3 {[%clk 0:00:13]} 38. Kh2 {[%clk 0:00:20]}  Rc2+ {[%clk 0:00:14]} 39. Kh1 {[%clk 0:00:19]}  Be6 {[%clk 0:00:14]} 40. Re3 {[%clk 0:00:14]}  Rd2 {[%clk 0:00:12]} 41. Rc3 {[%clk 0:00:12]}  Bg4 {[%clk 0:00:11]} 42. Re3 {[%clk 0:00:11]}  Rd1+ {[%clk 0:00:10]} 43. Kh2 {[%clk 0:00:11]}  Rd2+ {[%clk 0:00:10]} 44. Kg1 {[%clk 0:00:11]}  Rd1+ {[%clk 0:00:10]} 45. Kh2 {[%clk 0:00:11]}  Rd2+ {[%clk 0:00:10]} 46. Kh1 {[%clk 0:00:12]}  Bf5 {[%clk 0:00:11]} 47. Kg1 {[%clk 0:00:10]}  Bg4 {[%clk 0:00:10]} 48. Re1 {[%clk 0:00:09]}  Rc2 {[%clk 0:00:11]} 49. Rf1 {[%clk 0:00:09]}  Bf5 {[%clk 0:00:11]} 50. Rf2 {[%clk 0:00:09]}  Rc3 {[%clk 0:00:11]} 51. Kh2 {[%clk 0:00:09]}  Ra3 {[%clk 0:00:09]} 52. Bf3 {[%clk 0:00:09]}  Be6 {[%clk 0:00:09]} 53. Bd5 {[%clk 0:00:07]}  Bf5 {[%clk 0:00:09]} 54. Rb2 {[%clk 0:00:07]}  Rc3 {[%clk 0:00:09]} 55. Rd2 {[%clk 0:00:07]}  Be6 {[%clk 0:00:08]} 56. Rf2 {[%clk 0:00:07]}  Bf5 {[%clk 0:00:08]} 57. Bf3 {[%clk 0:00:06]}  Kh6 {[%clk 0:00:08]} 58. g4 {[%clk 0:00:05]}  Be6 {[%clk 0:00:07]} 59. Kxh3 {[%clk 0:00:06]}  Rxc4 {[%clk 0:00:08]} 60. Bg2 {[%clk 0:00:02]}  g5 {[%clk 0:00:08]} 61. f5 {[%clk 0:00:02]}  Rc3+ {[%clk 0:00:09]} 62. Kh2 {[%clk 0:00:02]}  Bc8 {[%clk 0:00:09]} 63. Re2 {[%clk 0:00:03]}  Kg7 {[%clk 0:00:08]} 64. e6 {[%clk 0:00:03]}  fxe6 {[%clk 0:00:09]} 65. fxe6 {[%clk 0:00:04]}  Kf6 {[%clk 0:00:03]} 66. e7 {[%clk 0:00:04]}  Bd7 {[%clk 0:00:04]} 67. e8=Q {[%clk 0:00:04]}  Bxe8 {[%clk 0:00:05]} 68. Rxe8 {[%clk 0:00:05]}  Rc4 {[%clk 0:00:06]} 69. Kg3 {[%clk 0:00:04]}  Rc3+ {[%clk 0:00:06]} 70. Bf3 {[%clk 0:00:04]}  c4 {[%clk 0:00:06]} 71. Rc8 {[%clk 0:00:05]}  Rc1 {[%clk 0:00:06]} 72. Rc5 {[%clk 0:00:04]}  c3 {[%clk 0:00:05]} 73. Kf2 {[%clk 0:00:04]}  c2 {[%clk 0:00:05]} 74. Be4 {[%clk 0:00:02]}  Ra1 {[%clk 0:00:03]} 75. Rxc2 {[%clk 0:00:02]}  Ra4 {[%clk 0:00:03]} 76. Bf3 {[%clk 0:00:03]}  Ke5 {[%clk 0:00:03]} 77. Re2+ {[%clk 0:00:03]}  Kf4 {[%clk 0:00:03]} 78. Kg2 {[%clk 0:00:03]}  Rd4 {[%clk 0:00:04]} 79. Rf2 {[%clk 0:00:03]}  Ke3 {[%clk 0:00:04]} 80. Re2+ {[%clk 0:00:03]}  Kf4 {[%clk 0:00:05]} 81. Re8 {[%clk 0:00:03]}  Rd2+ {[%clk 0:00:05]} 82. Be2 {[%clk 0:00:04]}  Rc2 {[%clk 0:00:05]} 83. Kf2 {[%clk 0:00:04]}  Ra2 {[%clk 0:00:05]} 84. Rf8+ {[%clk 0:00:05]}  Ke5 {[%clk 0:00:05]} 85. Rf5+ {[%clk 0:00:05]}  Ke4 {[%clk 0:00:06]} 86. Rxg5 {[%clk 0:00:06]}  Rb2 {[%clk 0:00:06]} 87. Rg8 {[%clk 0:00:06]}  Kf4 {[%clk 0:00:07]} 88. Rf8+ {[%clk 0:00:06]}  Kg5 {[%clk 0:00:08]} 89. Rf5+ {[%clk 0:00:06]}  Kh4 {[%clk 0:00:08]} 90. Rh5# {[%clk 0:00:07]} 1-0


[Site "https://www.chess.com"]

[Event "Titled Tuesday Blitz June 13 Late 2023"]
[White "Hansen, Eric"]
[Black "Novik, Maxim"]
[WhiteFideId "2606771"]
[BlackFideId "4102924"]
[WhiteElo "2561"]
[BlackElo "2287"]
[Result "1-0"]
[Round "2"]
[TimeControl "180+2"]
[Date "2023.06.13"]
[WhiteClock "0:00:28"]
[BlackClock "0:00:09"]
[Board "40"]

1. d4 {[%clk 0:02:39]}  Nf6 {[%clk 0:02:58]} 2. c4 {[%clk 0:02:34]}  e6 {[%clk 0:02:58]} 3. Nc3 {[%clk 0:02:33]}  Bb4 {[%clk 0:02:58]} 4. e3 {[%clk 0:02:26]}  O-O {[%clk 0:02:57]} 5. Ne2 {[%clk 0:02:26]}  b6 {[%clk 0:02:55]} 6. a3 {[%clk 0:02:24]}  Be7 {[%clk 0:02:50]} 7. e4 {[%clk 0:02:16]}  c5 {[%clk 0:02:34]} 8. d5 {[%clk 0:02:13]}  d6 {[%clk 0:02:30]} 9. f3 {[%clk 0:01:58]}  exd5 {[%clk 0:02:30]} 10. cxd5 {[%clk 0:01:57]}  a6 {[%clk 0:02:27]} 11. a4 {[%clk 0:01:54]}  Nfd7 {[%clk 0:02:15]} 12. Ng3 {[%clk 0:01:51]}  g6 {[%clk 0:02:12]} 13. Be2 {[%clk 0:01:51]}  Bf6 {[%clk 0:02:05]} 14. O-O {[%clk 0:01:50]}  Bg7 {[%clk 0:02:05]} 15. f4 {[%clk 0:01:47]}  Re8 {[%clk 0:01:59]} 16. Kh1 {[%clk 0:01:46]}  h5 {[%clk 0:01:53]} 17. e5 {[%clk 0:01:38]}  dxe5 {[%clk 0:01:48]} 18. f5 {[%clk 0:01:38]}  e4 {[%clk 0:01:34]} 19. fxg6 {[%clk 0:01:36]}  fxg6 {[%clk 0:01:34]} 20. Ngxe4 {[%clk 0:01:35]}  Ne5 {[%clk 0:01:19]} 21. Bg5 {[%clk 0:01:34]}  Qd7 {[%clk 0:01:14]} 22. a5 {[%clk 0:01:25]}  Qb7 {[%clk 0:01:03]} 23. Nd6 {[%clk 0:01:24]}  Qd7 {[%clk 0:01:01]} 24. Nxe8 {[%clk 0:01:23]}  Qxe8 {[%clk 0:01:02]} 25. axb6 {[%clk 0:01:17]}  Bf5 {[%clk 0:01:02]} 26. d6 {[%clk 0:00:57]}  Nbd7 {[%clk 0:01:00]} 27. Nd5 {[%clk 0:00:55]}  Kh7 {[%clk 0:00:49]} 28. Nc7 {[%clk 0:00:52]}  Qc8 {[%clk 0:00:46]} 29. Rxf5 {[%clk 0:00:52]}  gxf5 {[%clk 0:00:44]} 30. Bxa6 {[%clk 0:00:44]}  Rxa6 {[%clk 0:00:34]} 31. Qxh5+ {[%clk 0:00:42]}  Kg8 {[%clk 0:00:34]} 32. Rxa6 {[%clk 0:00:41]}  Nf8 {[%clk 0:00:26]} 33. h3 {[%clk 0:00:37]}  Qb7 {[%clk 0:00:23]} 34. Qe2 {[%clk 0:00:31]}  Nfg6 {[%clk 0:00:12]} 35. Ne6 {[%clk 0:00:28]}  c4 {[%clk 0:00:10]} 36. Ra7 {[%clk 0:00:27]}  Qxb6 {[%clk 0:00:10]} 37. Rxg7+ {[%clk 0:00:27]}  Kh8 {[%clk 0:00:09]} 38. Qh5# {[%clk 0:00:28]} 1-0


[Site "https://www.chess.com"]

[Event "Titled Tuesday Blitz June 13 Late 2023"]
[White "Jumabayev, Rinat"]
[Black "Vovk, Orest"]
[WhiteFideId "13702661"]
[BlackFideId "14113490"]
[WhiteElo "2561"]
[BlackElo "2215"]
[Result "1-0"]
[Round "2"]
[TimeControl "180+2"]
[Date "2023.06.13"]
[WhiteClock "0:00:04"]
[BlackClock "0:00:00"]
[Board "41"]

1. c4 {[%clk 0:02:58]}  g5 {[%clk 0:02:59]} 2. d4 {[%clk 0:02:56]}  h6 {[%clk 0:02:58]} 3. Nc3 {[%clk 0:02:54]}  Bg7 {[%clk 0:02:58]} 4. g3 {[%clk 0:02:51]}  c5 {[%clk 0:02:57]} 5. d5 {[%clk 0:02:48]}  Bxc3+ {[%clk 0:02:57]} 6. bxc3 {[%clk 0:02:49]}  d6 {[%clk 0:02:57]} 7. e4 {[%clk 0:02:49]}  Qa5 {[%clk 0:02:57]} 8. Bd2 {[%clk 0:02:47]}  Nf6 {[%clk 0:02:57]} 9. Bd3 {[%clk 0:02:47]}  Nbd7 {[%clk 0:02:53]} 10. f4 {[%clk 0:02:43]}  gxf4 {[%clk 0:02:51]} 11. gxf4 {[%clk 0:02:44]}  Rg8 {[%clk 0:02:50]} 12. Nf3 {[%clk 0:02:39]}  Nf8 {[%clk 0:02:35]} 13. e5 {[%clk 0:02:37]}  Nh5 {[%clk 0:02:32]} 14. Kf2 {[%clk 0:02:21]}  Bd7 {[%clk 0:01:54]} 15. Nh4 {[%clk 0:01:51]}  Rg4 {[%clk 0:01:46]} 16. Ng2 {[%clk 0:01:30]}  Ng6 {[%clk 0:00:59]} 17. e6 {[%clk 0:01:29]}  Rxg2+ {[%clk 0:00:56]} 18. Kxg2 {[%clk 0:01:29]}  Nhxf4+ {[%clk 0:00:57]} 19. Bxf4 {[%clk 0:01:24]}  Nxf4+ {[%clk 0:00:58]} 20. Kg3 {[%clk 0:01:19]}  fxe6 {[%clk 0:00:49]} 21. Kxf4 {[%clk 0:01:17]}  Qxc3 {[%clk 0:00:44]} 22. Bg6+ {[%clk 0:00:48]}  Kd8 {[%clk 0:00:41]} 23. Qd3 {[%clk 0:00:49]}  Qe5+ {[%clk 0:00:36]} 24. Kf3 {[%clk 0:00:48]}  Kc7 {[%clk 0:00:35]} 25. h4 {[%clk 0:00:06]}  Rf8+ {[%clk 0:00:28]} 26. Kg2 {[%clk 0:00:06]}  exd5 {[%clk 0:00:20]} 27. Rhf1 {[%clk 0:00:06]}  dxc4 {[%clk 0:00:15]} 28. Qg3 {[%clk 0:00:06]}  Qe2+ {[%clk 0:00:08]} 29. Kg1 {[%clk 0:00:06]}  Rg8 {[%clk 0:00:07]} 30. h5 {[%clk 0:00:06]}  Bc6 {[%clk 0:00:04]} 31. Rae1 {[%clk 0:00:06]}  Qb2 {[%clk 0:00:02]} 32. Rxe7+ {[%clk 0:00:06]}  Kc8 {[%clk 0:00:00]} 33. Qg4+ {[%clk 0:00:04]} 1-0


[Site "https://www.chess.com"]

[Event "Titled Tuesday Blitz June 13 Late 2023"]
[White "Moroni, Luca Jr"]
[Black "Chor, Kevin"]
[WhiteFideId "865834"]
[BlackFideId "2090740"]
[WhiteElo "2569"]
[BlackElo "2561"]
[Result "1-0"]
[Round "2"]
[TimeControl "180+2"]
[Date "2023.06.13"]
[WhiteClock "0:00:29"]
[BlackClock "0:00:02"]
[Board "43"]

1. d4 {[%clk 0:03:00]}  Nf6 {[%clk 0:02:59]} 2. Bf4 {[%clk 0:03:01]}  c5 {[%clk 0:02:53]} 3. e3 {[%clk 0:02:59]}  g6 {[%clk 0:02:48]} 4. Nf3 {[%clk 0:02:58]}  Bg7 {[%clk 0:02:48]} 5. h3 {[%clk 0:02:57]}  O-O {[%clk 0:02:45]} 6. c3 {[%clk 0:02:56]}  d6 {[%clk 0:02:39]} 7. Nbd2 {[%clk 0:02:55]}  Nbd7 {[%clk 0:02:39]} 8. Bh2 {[%clk 0:02:55]}  b6 {[%clk 0:02:39]} 9. Be2 {[%clk 0:02:55]}  Bb7 {[%clk 0:02:39]} 10. O-O {[%clk 0:02:54]}  Ne4 {[%clk 0:02:40]} 11. Nxe4 {[%clk 0:02:51]}  Bxe4 {[%clk 0:02:41]} 12. Nd2 {[%clk 0:02:52]}  Bb7 {[%clk 0:02:41]} 13. a4 {[%clk 0:02:48]}  e5 {[%clk 0:02:33]} 14. dxe5 {[%clk 0:02:41]}  Nxe5 {[%clk 0:02:27]} 15. Nf3 {[%clk 0:02:40]}  Nc6 {[%clk 0:02:17]} 16. Bc4 {[%clk 0:02:37]}  Na5 {[%clk 0:02:11]} 17. Bd5 {[%clk 0:02:36]}  Nc6 {[%clk 0:02:07]} 18. Qd2 {[%clk 0:02:32]}  Qf6 {[%clk 0:02:00]} 19. Rad1 {[%clk 0:02:32]}  Rfd8 {[%clk 0:01:56]} 20. Rfe1 {[%clk 0:02:26]}  Rac8 {[%clk 0:01:52]} 21. e4 {[%clk 0:02:25]}  Na5 {[%clk 0:01:44]} 22. Bxb7 {[%clk 0:02:23]}  Nxb7 {[%clk 0:01:43]} 23. Qd5 {[%clk 0:02:24]}  Na5 {[%clk 0:01:39]} 24. Bxd6 {[%clk 0:02:20]}  Bf8 {[%clk 0:01:30]} 25. e5 {[%clk 0:02:19]}  Qf5 {[%clk 0:01:28]} 26. Re2 {[%clk 0:02:02]}  Nc6 {[%clk 0:01:18]} 27. Red2 {[%clk 0:01:58]}  Rd7 {[%clk 0:01:12]} 28. Nh4 {[%clk 0:01:38]}  Qh5 {[%clk 0:01:04]} 29. Nf3 {[%clk 0:01:36]}  Qf5 {[%clk 0:00:57]} 30. Qd3 {[%clk 0:01:30]}  Qe6 {[%clk 0:00:53]} 31. Ng5 {[%clk 0:01:06]}  Qb3 {[%clk 0:00:43]} 32. Qg3 {[%clk 0:01:01]}  Qxa4 {[%clk 0:00:36]} 33. Kh2 {[%clk 0:00:46]}  Bg7 {[%clk 0:00:33]} 34. f4 {[%clk 0:00:43]}  Re8 {[%clk 0:00:28]} 35. Qf3 {[%clk 0:00:38]}  f6 {[%clk 0:00:20]} 36. Qd5+ {[%clk 0:00:34]}  Kh8 {[%clk 0:00:19]} 37. Nf7+ {[%clk 0:00:34]}  Kg8 {[%clk 0:00:17]} 38. e6 {[%clk 0:00:31]}  Rb7 {[%clk 0:00:12]} 39. b3 {[%clk 0:00:30]}  Qb5 {[%clk 0:00:09]} 40. c4 {[%clk 0:00:30]}  Nb4 {[%clk 0:00:02]} 41. Qxb7 {[%clk 0:00:29]} 1-0


[Site "https://www.chess.com"]

[Event "Titled Tuesday Blitz June 13 Late 2023"]
[White "Novikov, Evgenij"]
[Black "Lashkin, Jegor"]
[WhiteFideId "4125380"]
[BlackFideId "13907808"]
[WhiteElo "2242"]
[BlackElo "2368"]
[Result "0-1"]
[Round "2"]
[TimeControl "180+2"]
[Date "2023.06.13"]
[WhiteClock "0:00:14"]
[BlackClock "0:00:13"]
[Board "46"]

1. d4 {[%clk 0:02:59]}  d5 {[%clk 0:02:58]} 2. c4 {[%clk 0:02:59]}  e6 {[%clk 0:02:58]} 3. cxd5 {[%clk 0:03:00]}  exd5 {[%clk 0:02:57]} 4. Nc3 {[%clk 0:03:01]}  c6 {[%clk 0:02:57]} 5. Bf4 {[%clk 0:03:01]}  Bf5 {[%clk 0:02:56]} 6. e3 {[%clk 0:03:00]}  Bd6 {[%clk 0:02:56]} 7. Bg3 {[%clk 0:03:01]}  Nf6 {[%clk 0:02:53]} 8. Bd3 {[%clk 0:03:01]}  Bxd3 {[%clk 0:02:53]} 9. Qxd3 {[%clk 0:03:02]}  O-O {[%clk 0:02:53]} 10. Nf3 {[%clk 0:03:01]}  Re8 {[%clk 0:02:53]} 11. O-O-O {[%clk 0:03:01]}  a5 {[%clk 0:02:49]} 12. Qc2 {[%clk 0:03:00]}  Na6 {[%clk 0:02:46]} 13. Kb1 {[%clk 0:02:59]}  Qe7 {[%clk 0:02:34]} 14. Ne5 {[%clk 0:02:46]}  Nd7 {[%clk 0:02:25]} 15. Nxd7 {[%clk 0:02:37]}  Qxd7 {[%clk 0:02:26]} 16. Bxd6 {[%clk 0:02:37]}  Qxd6 {[%clk 0:02:26]} 17. Rhe1 {[%clk 0:02:28]}  Nc7 {[%clk 0:02:19]} 18. e4 {[%clk 0:02:25]}  dxe4 {[%clk 0:02:19]} 19. Nxe4 {[%clk 0:02:18]}  Qd5 {[%clk 0:02:09]} 20. f3 {[%clk 0:02:07]}  Nb5 {[%clk 0:01:59]} 21. Nc3 {[%clk 0:01:53]}  Nxc3+ {[%clk 0:01:52]} 22. bxc3 {[%clk 0:01:51]}  b5 {[%clk 0:01:38]} 23. Qb3 {[%clk 0:01:37]}  Qd6 {[%clk 0:01:37]} 24. g3 {[%clk 0:01:27]}  h5 {[%clk 0:01:28]} 25. f4 {[%clk 0:01:26]}  h4 {[%clk 0:01:21]} 26. Re5 {[%clk 0:01:25]}  hxg3 {[%clk 0:01:18]} 27. hxg3 {[%clk 0:01:26]}  Qg6+ {[%clk 0:01:17]} 28. Qc2 {[%clk 0:01:19]}  Qxg3 {[%clk 0:01:17]} 29. Rg5 {[%clk 0:00:56]}  Qxf4 {[%clk 0:01:12]} 30. Rdg1 {[%clk 0:00:56]}  Re1+ {[%clk 0:01:12]} 31. Rxe1 {[%clk 0:00:45]}  Qxg5 {[%clk 0:01:12]} 32. Qe4 {[%clk 0:00:46]}  Rc8 {[%clk 0:01:03]} 33. Kb2 {[%clk 0:00:42]}  Qd2+ {[%clk 0:00:59]} 34. Kb3 {[%clk 0:00:38]}  a4+ {[%clk 0:00:58]} 35. Kb4 {[%clk 0:00:39]}  Qb2+ {[%clk 0:00:55]} 36. Kc5 {[%clk 0:00:39]}  Qxc3+ {[%clk 0:00:53]} 37. Kd6 {[%clk 0:00:39]}  Qa5 {[%clk 0:00:37]} 38. Kc5 {[%clk 0:00:28]}  b4+ {[%clk 0:00:33]} 39. Kd6 {[%clk 0:00:23]}  b3 {[%clk 0:00:25]} 40. Qe7 {[%clk 0:00:18]}  Qb4+ {[%clk 0:00:20]} 41. Kd7 {[%clk 0:00:18]}  Qxe7+ {[%clk 0:00:16]} 42. Rxe7 {[%clk 0:00:19]}  bxa2 {[%clk 0:00:13]} 43. Re1 {[%clk 0:00:14]}  Rb8 {[%clk 0:00:13]} 44. Ra1 {[%clk 0:00:14]}  Rb4 {[%clk 0:00:13]} 45. Kxc6 {[%clk 0:00:15]}  Rxd4 {[%clk 0:00:13]} 46. Rxa2 {[%clk 0:00:15]}  Rf4 {[%clk 0:00:13]} 47. Kc5 {[%clk 0:00:14]}  g5 {[%clk 0:00:13]} 0-1


[Site "https://www.chess.com"]